fUST/lending_fUST_20250911
["ID","MTS","AMOUNT","RATE_DAILY","PERIOD"]
[384872557,1757604646520,-480.0,0.00014486,2]
[384872559,1757604646529,-480.0,0.00014486,2]
[384872561,1757604646538,-775.14,0.00014486,2]
[384872563,1757604646547,-480.0,0.00014486,2]
[384872565,1757604646557,-480.0,0.00014486,2]
[384872567,1757604646566,-746.98,0.00014486,2]
[384872569,1757604646575,-492.85,0.00014486,2]
[384872571,1757604646584,-628.3,0.00014487,2]
[384872573,1757604646593,-480.0,0.00014487,2]
[384872575,1757604646603,-151.0,0.00014487,2]
[384872577,1757604646613,-394.36,0.00014487,2]
[384872579,1757604646622,-480.0,0.00014487,2]
[384872581,1757604646632,-488.91,0.00014487,2]
[384872583,1757604646642,-480.0,0.00014487,2]
[384872585,1757604646651,-480.0,0.00014487,2]
[384872587,1757604646660,-151.0,0.00014487,2]
[384872589,1757604646669,-151.0,0.00014487,2]
[384872591,1757604646679,-480.0,0.00014487,2]
[384872593,1757604646688,-480.0,0.00014487,2]
[384872595,1757604646697,-662.21,0.00014487,2]
[384872597,1757604646707,-480.0,0.00014487,2]
[384872599,1757604646716,-2749.782297,0.00014487,2]
[384872621,1757604646916,-877.67347456,0.00014487,2]
[384872623,1757604646928,-3298.51422844,0.00014487,2]
[384872625,1757604646938,-171.309264,0.00014487,2]
[384872627,1757604646951,-151.0,0.00014487,2]
[384872629,1757604646960,-186.845723,0.00014487,2]
[384872631,1757604646969,-491.89,0.00014487,2]
[384872633,1757604646978,-151.0,0.00014487,2]
[384872635,1757604646988,-480.0,0.00014487,2]
[384872637,1757604646997,-580.39,0.00014487,2]
[384872639,1757604647006,-151.0,0.00014487,2]
[384872641,1757604647015,-480.0,0.00014487,2]
[384872643,1757604647024,-751.99,0.00014487,2]
[384872645,1757604647033,-151.0,0.00014487,2]
[384872647,1757604647043,-953.47,0.00014487,2]
[384872649,1757604647053,-151.0,0.00014487,2]
[384872651,1757604647063,-151.0,0.00014487,2]
[384872653,1757604647072,-151.0,0.00014487,2]
[384872655,1757604647081,-151.0,0.00014487,2]
[384872657,1757604647091,-57.59078452,0.00014487,2]
[384873430,1757605150959,341.1,0.00012329,2]
[384873433,1757605161668,284.25,0.00012329,2]
[384873436,1757605172168,236.87,0.00012329,2]
[384873441,1757605182778,197.39,0.00012329,2]
[384873444,1757605193305,164.5,0.00012329,2]
[384873446,1757605203889,822.5,0.00012329,2]
[384873448,1757605219742,454.0,0.00027397,120]
[384873454,1757605226676,503.62409,0.00013699,2]
[384873460,1757605268903,455.0,0.00027397,120]
[384873468,1757605338471,300.0,0.000145,9]
[384873469,1757605346668,455.0,0.00027397,120]
[384873475,1757605399039,152.58,0.00012329,2]
[384873476,1757605407907,1043.0,0.000145,9]
[384873477,1757605409568,254.31,0.00012329,2]
[384873481,1757605416574,1043.0,0.000145,9]
[384873482,1757605420644,317.89,0.00012329,2]
[384873488,1757605423232,227.0,0.00027397,120]
[384873489,1757605431120,353.21,0.00012329,2]
[384873490,1757605434978,743.0,0.00013575,2]
[384873491,1757605441614,367.93,0.00012329,2]
[384873492,1757605443587,743.0,0.00013575,2]
[384873493,1757605452146,367.93,0.00012329,2]
[384873494,1757605459489,743.0,0.00013575,2]
[384873495,1757605460582,455.0,0.00027397,120]
[384873496,1757605462617,357.71,0.00012329,2]
[384873497,1757605467662,743.0,0.00013575,2]
[384873498,1757605473041,340.68,0.00012329,2]
[384873499,1757605482992,743.0,0.00013575,2]
[384873500,1757605483650,319.39,0.00012329,2]
[384873501,1757605492040,743.0,0.00013575,2]
[384873502,1757605494751,295.73,0.00012329,2]
[384873503,1757605505224,246.44,0.00012329,2]
[384873504,1757605508178,790.85443683,0.00013575,2]
[384873505,1757605515727,353.23,0.00012329,2]
[384873506,1757605516239,790.85443683,0.00013575,2]
[384873507,1757605526235,294.36,0.00012329,2]
[384873508,1757605533494,822.07820943,0.00013575,2]
[384873509,1757605536984,245.3,0.00012329,2]
[384873510,1757605542992,300.0,0.00013575,2]
[384873511,1757605547443,204.42,0.00012329,2]
[384873512,1757605558071,170.35,0.00012329,2]
[384873513,1757605558438,822.07820943,0.00013575,2]
[384873514,1757605567123,300.0,0.00013575,2]
[384873515,1757605568721,851.77,0.00012329,2]
[384873516,1757605583117,822.07820943,0.00013575,2]
[384873517,1757605590247,2880.0,0.00027,120]
[384873518,1757605591437,300.0,0.00013575,2]
[384873519,1757605607790,822.07820943,0.00013575,2]
[384873524,1757605616275,455.0,0.00027397,120]
[384873533,1757605625266,822.07820943,0.00013575,2]
[384873534,1757605645278,300.0,0.00013575,2]
[384873536,1757605654294,1581.76281512,0.00013575,2]
[384873537,1757605670230,1043.0,0.00013575,2]
[384873538,1757605678923,155.43639724,0.00013575,2]
[384873540,1757605695093,1043.0,0.00013575,2]
[384873552,1757605718606,1043.0,0.00013575,2]
[384873555,1757605742726,1043.0,0.00013575,2]
[384873557,1757605765383,1043.0,0.00013575,2]
[384873560,1757605788755,1043.0,0.00013575,2]
[384873563,1757605805993,666.0,0.00012934,2]
[384873564,1757605810727,455.0,0.00027397,120]
[384873565,1757605812361,1043.0,0.00013575,2]
[384873567,1757605828883,1581.76281512,0.00013575,2]
[384873588,1757605832195,-1581.76281512,0.00013851,2]
[384873590,1757605832205,-218.35096361,0.00013931,2]
[384873592,1757605832216,-850.00614396,0.00013931,2]
[384873594,1757605832230,-131.64289243,0.00013931,2]
[384873596,1757605832239,-1095.2749064,0.00013932,2]
[384873604,1757605832304,-104.7250936,0.00013932,2]
[384873606,1757605832313,-300.0,0.00013932,2]
[384873608,1757605832323,-272.0,0.00013932,2]
[384873610,1757605832332,-51.84947139,0.00013933,2]
[384873612,1757605832343,-16853.22193754,0.00013933,2]
[384873614,1757605832352,-500.0,0.00013933,2]
[384873616,1757605832361,-500.0,0.00013933,2]
[384873618,1757605832370,-232.7535223,0.00013933,2]
[384873620,1757605832380,-500.0,0.00013933,2]
[384873622,1757605832389,-392.89697601,0.00013933,2]
[384873624,1757605832398,-247.33940078,0.00013933,2]
[384873627,1757605832407,-500.0,0.00013933,2]
[384873628,1757605832417,-500.0,0.00013933,2]
[384873630,1757605832426,-500.0,0.00013933,2]
[384873632,1757605832435,-500.0,0.00013933,2]
[384873634,1757605832445,-500.0,0.00013933,2]
[384873636,1757605832454,-500.0,0.00013933,2]
[384873639,1757605832463,-500.0,0.00013933,2]
[384873641,1757605832473,-501.90046949,0.00013933,2]
[384873643,1757605832483,-500.0,0.00013933,2]
[384873645,1757605832491,-500.0,0.00013933,2]
[384873646,1757605832501,-500.0,0.00013933,2]
[384873648,1757605832510,-500.0,0.00013933,2]
[384873650,1757605832519,-500.0,0.00013933,2]
[384873653,1757605832528,-500.0,0.00013933,2]
[384873654,1757605832537,-500.0,0.00013933,2]
[384873656,1757605832546,-500.0,0.00013933,2]
[384873658,1757605832555,-530.01922311,0.00013933,2]
[384873660,1757605832564,-500.0,0.00013933,2]
[384873662,1757605832574,-500.0,0.00013933,2]
[384873665,1757605832583,-500.0,0.00013933,2]
[384873666,1757605832592,-404.07822389,0.00013933,2]
[384873668,1757605832601,-500.0,0.00013933,2]
[384873671,1757605832611,-500.0,0.00013933,2]
[384873672,1757605832620,-480.0,0.00013933,2]
[384873675,1757605832630,-678.25,0.00013933,2]
[384873677,1757605832639,-480.0,0.00013933,2]
[384873678,1757605832648,-208.34710857,0.00013934,2]
[384873681,1757605832657,-480.0,0.00013934,2]
[384873683,1757605832667,-483.5504906,0.00013934,2]
[384873685,1757605832676,-480.0,0.00013934,2]
[384873686,1757605832685,-480.0,0.00013934,2]
[384873688,1757605832694,-480.0,0.00013934,2]
[384873690,1757605832703,-480.0,0.00013934,2]
[384873692,1757605832716,-480.0,0.00013934,2]
[384873694,1757605832725,-480.0,0.00013934,2]
[384873697,1757605832737,-480.0,0.00013934,2]
[384873698,1757605832746,-480.0,0.00013934,2]
[384873701,1757605832757,-480.0,0.00013934,2]
[384873702,1757605832766,-480.0,0.00013934,2]
[384873705,1757605832775,-480.0,0.00013934,2]
[384873706,1757605832788,-480.0,0.00013934,2]
[384873708,1757605832798,-481.50904131,0.00013934,2]
[384873711,1757605832809,-480.0,0.00013934,2]
[384873713,1757605832818,-480.0,0.00013934,2]
[384873714,1757605832828,-480.0,0.00013934,2]
[384873716,1757605832837,-1616.66,0.00013934,2]
[384873718,1757605832848,-1206.14,0.00013934,2]
[384873720,1757605832858,-480.0,0.00013934,2]
[384873722,1757605832867,-480.0,0.00013934,2]
[384873724,1757605832877,-480.0,0.00013934,2]
[384873726,1757605832887,-480.0,0.00013934,2]
[384873728,1757605832896,-480.0,0.00013934,2]
[384873730,1757605832906,-480.0,0.00013934,2]
[384873732,1757605832915,-480.0,0.00013934,2]
[384873734,1757605832924,-480.0,0.00013934,2]
[384873735,1757605832934,-480.0,0.00013934,2]
[384873736,1757605832943,-480.0,0.00013934,2]
[384873737,1757605832952,-1194.11,0.00013934,2]
[384873738,1757605832960,-480.0,0.00013934,2]
[384873739,1757605832970,-480.0,0.00013934,2]
[384873740,1757605832979,-825.05,0.00013934,2]
[384873741,1757605832988,-1163.45,0.00013934,2]
[384873742,1757605832997,-480.0,0.00013934,2]
[384873743,1757605833007,-480.0,0.00013934,2]
[384873744,1757605833017,-480.0,0.00013934,2]
[384873745,1757605833026,-480.0,0.00013934,2]
[384873747,1757605833036,-480.0,0.00013934,2]
[384873749,1757605833045,-579.44,0.00013934,2]
[384873751,1757605833054,-480.0,0.00013934,2]
[384873753,1757605833064,-653.61,0.00013934,2]
[384873755,1757605833074,-480.0,0.00013936,2]
[384873757,1757605833085,-480.0,0.00013936,2]
[384873759,1757605833094,-480.0,0.00013936,2]
[384873761,1757605833105,-480.0,0.00013936,2]
[384873763,1757605833115,-480.0,0.00013936,2]
[384873765,1757605833125,-408.48682547,0.00013936,2]
[384873767,1757605833135,-185.54164219,0.00013936,2]
[384873769,1757605833144,-480.0,0.00013936,2]
[384873771,1757605833154,-480.0,0.00013936,2]
[384873773,1757605833163,-609.24,0.00013936,2]
[384873775,1757605833173,-480.0,0.00013936,2]
[384873777,1757605833182,-182.16866467,0.00013936,2]
[384873779,1757605833191,-480.0,0.00013936,2]
[384873781,1757605833200,-480.0,0.00013936,2]
[384873792,1757605833325,-480.0,0.00013936,2]
[384873795,1757605833345,-480.0,0.00013936,2]
[384873797,1757605833355,-480.0,0.00013936,2]
[384873798,1757605833364,-480.0,0.00013936,2]
[384873800,1757605833374,-480.0,0.00013936,2]
[384873803,1757605833383,-480.0,0.00013936,2]
[384873804,1757605833393,-480.0,0.00013936,2]
[384873807,1757605833403,-709.52,0.00013936,2]
[384873808,1757605833412,-480.0,0.00013936,2]
[384873811,1757605833422,-480.0,0.00013936,2]
[384873812,1757605833431,-480.0,0.00013936,2]
[384873813,1757605833441,-480.0,0.00013936,2]
[384873815,1757605833450,-480.0,0.00013936,2]
[384873817,1757605833459,-480.0,0.00013936,2]
[384873819,1757605833468,-480.0,0.00013936,2]
[384873821,1757605833478,-480.0,0.00013936,2]
[384873823,1757605833487,-480.0,0.00013936,2]
[384873825,1757605833496,-480.0,0.00013936,2]
[384873827,1757605833506,-480.0,0.00013936,2]
[384873828,1757605833515,-496.64,0.00013936,2]
[384873830,1757605833524,-480.0,0.00013936,2]
[384873833,1757605833534,-480.0,0.00013936,2]
[384873834,1757605833544,-480.0,0.00013936,2]
[384873836,1757605833554,-480.0,0.00013936,2]
[384873838,1757605833564,-480.0,0.00013936,2]
[384873840,1757605833573,-480.0,0.00013936,2]
[384873842,1757605833583,-480.0,0.00013936,2]
[384873844,1757605833592,-480.0,0.00013936,2]
[384873846,1757605833601,-480.0,0.00013936,2]
[384873848,1757605833611,-554.39,0.00013936,2]
[384873850,1757605833620,-480.0,0.00013937,2]
[384873852,1757605833629,-480.0,0.00013937,2]
[384873854,1757605833639,-480.0,0.00013937,2]
[384873856,1757605833648,-500.0,0.00013937,2]
[384873858,1757605833658,-438.38618882,0.00013937,2]
[384874026,1757605838305,-41.61381118,0.00013937,2]
[384874027,1757605838318,-480.0,0.00013937,2]
[384874028,1757605838329,-480.0,0.00013937,2]
[384874029,1757605838338,-126.89631894,0.00013937,2]
[384874030,1757605838350,-353.10368106,0.00013937,2]
[384874031,1757605838360,-480.0,0.00013937,2]
[384874032,1757605838369,-389.29266442,0.00013937,2]
[384874033,1757605838381,-90.70733558,0.00013937,2]
[384874034,1757605838390,-379.31885239,0.00013937,2]
[384874035,1757605838402,-100.68114761,0.00013937,2]
[384874036,1757605838411,-360.43,0.00013937,2]
[384874037,1757605838421,-587.62,0.00013937,2]
[384874038,1757605838431,-480.0,0.00013937,2]
[384874039,1757605838441,-480.0,0.00013937,2]
[384874040,1757605838450,-480.0,0.00013937,2]
[384874041,1757605838459,-483.73,0.00013937,2]
[384874042,1757605838469,-549.07,0.00013937,2]
[384874043,1757605838479,-480.0,0.00013937,2]
[384874044,1757605838489,-480.0,0.00013937,2]
[384874045,1757605838499,-480.0,0.00013937,2]
[384874046,1757605838508,-480.0,0.00013937,2]
[384874047,1757605838519,-1431.46,0.00013937,2]
[384874048,1757605838530,-832.14,0.00013937,2]
[384874049,1757605838539,-3058.92,0.00013937,2]
[384874050,1757605838550,-500.0,0.00013937,2]
[384874051,1757605838561,-202.21156171,0.00013937,2]
[384874052,1757605838570,-735.82,0.00013937,2]
[384874053,1757605838581,-480.0,0.00013937,2]
[384874054,1757605838590,-496.73,0.00013937,2]
[384874055,1757605838600,-577.41,0.00013937,2]
[384874056,1757605838609,-1073.03,0.00013937,2]
[384874057,1757605838618,-834.29,0.00013937,2]
[384874058,1757605838628,-480.0,0.00013937,2]
[384874059,1757605838637,-1216.61,0.00013937,2]
[384874060,1757605838647,-480.0,0.00013937,2]
[384874061,1757605838656,-480.0,0.00013937,2]
[384874062,1757605838666,-418.4205918,0.00013937,2]
[384874063,1757605838675,-480.0,0.00013937,2]
[384874064,1757605838684,-7078.29,0.00013937,2]
[384874065,1757605838694,-480.0,0.00013937,2]
[384874066,1757605838704,-480.0,0.00013937,2]
[384874067,1757605838718,-198.2,0.00013937,2]
[384874068,1757605838728,-480.0,0.00013937,2]
[384874069,1757605838738,-351.37634893,0.00013938,2]
[384874070,1757605838748,-480.0,0.00013938,2]
[384874071,1757605838759,-480.0,0.00013938,2]
[384874072,1757605838768,-484.04014659,0.00013938,2]
[384874073,1757605838777,-480.0,0.00013938,2]
[384874074,1757605838787,-480.0,0.00013938,2]
[384874075,1757605838797,-480.0,0.00013938,2]
[384874076,1757605838808,-480.0,0.00013938,2]
[384874077,1757605838818,-480.0,0.00013938,2]
[384874078,1757605838828,-480.0,0.00013938,2]
[384874079,1757605838838,-480.0,0.00013938,2]
[384874080,1757605838848,-480.0,0.00013938,2]
[384874081,1757605838857,-480.0,0.00013938,2]
[384874082,1757605838866,-480.49697402,0.00013938,2]
[384874083,1757605838876,-480.0,0.00013938,2]
[384874084,1757605838886,-500.0,0.00013938,2]
[384874085,1757605838895,-480.0,0.00013938,2]
[384874086,1757605838905,-405.77697043,0.00013938,2]
[384874087,1757605838914,-480.0,0.00013938,2]
[384874088,1757605838924,-480.0,0.00013938,2]
[384874089,1757605838934,-480.0,0.00013938,2]
[384874090,1757605838944,-480.0,0.00013938,2]
[384874091,1757605838954,-480.0,0.00013938,2]
[384874092,1757605838966,-480.0,0.00013938,2]
[384874093,1757605838975,-480.0,0.00013938,2]
[384874094,1757605838985,-480.0,0.00013938,2]
[384874095,1757605838995,-480.0,0.00013938,2]
[384874096,1757605839004,-480.0,0.00013938,2]
[384874097,1757605839013,-480.0,0.00013938,2]
[384874098,1757605839023,-480.0,0.00013938,2]
[384874099,1757605839033,-480.0,0.00013938,2]
[384874100,1757605839042,-480.0,0.00013938,2]
[384874101,1757605839051,-480.0,0.00013938,2]
[384874102,1757605839062,-480.0,0.00013938,2]
[384874103,1757605839071,-480.0,0.00013938,2]
[384874104,1757605839080,-480.0,0.00013938,2]
[384874105,1757605839089,-480.0,0.00013938,2]
[384874106,1757605839099,-480.0,0.00013938,2]
[384874107,1757605839108,-480.0,0.00013938,2]
[384874108,1757605839117,-480.0,0.00013938,2]
[384874109,1757605839127,-480.0,0.00013938,2]
[384874110,1757605839136,-480.0,0.00013938,2]
[384874111,1757605839146,-480.0,0.00013938,2]
[384874112,1757605839154,-480.0,0.00013938,2]
[384874113,1757605839164,-523.28,0.00013938,2]
[384874114,1757605839173,-480.0,0.00013938,2]
[384874115,1757605839182,-480.0,0.00013938,2]
[384874116,1757605839191,-480.0,0.00013938,2]
[384874117,1757605839200,-480.0,0.00013938,2]
[384874118,1757605839209,-480.0,0.00013938,2]
[384874119,1757605839219,-636.77,0.00013938,2]
[384874120,1757605839228,-480.0,0.00013938,2]
[384874121,1757605839237,-500.0,0.00013938,2]
[384874122,1757605839246,-480.0,0.00013938,2]
[384874123,1757605839256,-480.0,0.00013938,2]
[384874124,1757605839265,-480.0,0.00013938,2]
[384874125,1757605839275,-480.0,0.00013938,2]
[384874126,1757605839284,-189.51015815,0.00013938,2]
[384874127,1757605839309,-290.48984185,0.00013938,2]
[384874128,1757605839319,-54.66370313,0.00013938,2]
[384874129,1757605839332,-426.72454171,0.00013938,2]
[384874130,1757605839342,-151.0,0.00013938,2]
[384874131,1757605839352,-480.0,0.00013938,2]
[384874132,1757605839361,-480.0,0.00013938,2]
[384874133,1757605839371,-151.0,0.00013938,2]
[384874134,1757605839381,-452.50616481,0.00013938,2]
[384874135,1757605839391,-151.0,0.00013938,2]
[384874136,1757605839400,-480.0,0.00013938,2]
[384874137,1757605839410,-480.0,0.00013938,2]
[384874138,1757605839419,-480.0,0.00013938,2]
[384874139,1757605839428,-151.0,0.00013938,2]
[384874140,1757605839437,-480.0,0.00013938,2]
[384874141,1757605839447,-480.0,0.00013938,2]
[384874142,1757605839456,-480.0,0.00013938,2]
[384874143,1757605839466,-151.0,0.00013938,2]
[384874144,1757605839475,-151.0,0.00013938,2]
[384874145,1757605839484,-262.66069,0.00013938,2]
[384874146,1757605839494,-151.0,0.00013938,2]
[384874147,1757605839503,-541.74648561,0.00013938,2]
[384874148,1757605839512,-480.0,0.00013938,2]
[384874149,1757605839521,-480.0,0.00013938,2]
[384874150,1757605839531,-480.0,0.00013938,2]
[384874151,1757605839540,-482.06700503,0.00013938,2]
[384874152,1757605839549,-151.0,0.00013938,2]
[384874153,1757605839558,-151.0,0.00013938,2]
[384874154,1757605839569,-480.0,0.00013938,2]
[384874155,1757605839579,-151.0,0.00013938,2]
[384874156,1757605839589,-151.0,0.00013938,2]
[384874157,1757605839598,-480.0,0.00013938,2]
[384874158,1757605839611,-480.0,0.00013939,2]
[384874159,1757605839626,-480.0,0.00013939,2]
[384874160,1757605839636,-480.0,0.00013939,2]
[384874161,1757605839645,-481.18102115,0.00013939,2]
[384874162,1757605839655,-480.0,0.00013939,2]
[384874163,1757605839664,-480.0,0.00013939,2]
[384874164,1757605839675,-480.0,0.00013939,2]
[384874165,1757605839684,-480.0,0.00013939,2]
[384874166,1757605839694,-274.26208804,0.00013939,2]
[384874167,1757605839704,-480.0,0.00013939,2]
[384874168,1757605839718,-480.0,0.00013939,2]
[384874169,1757605839730,-480.0,0.00013939,2]
[384874170,1757605839739,-163.11748027,0.00013939,2]
[384874171,1757605839748,-480.0,0.00013939,2]
[384874172,1757605839758,-480.0,0.00013939,2]
[384874174,1757605839767,-480.0,0.00013939,2]
[384874176,1757605839777,-480.0,0.00013939,2]
[384874177,1757605839796,-483.07122441,0.00013939,2]
[384874179,1757605839806,-480.0,0.00013939,2]
[384874182,1757605839817,-480.0,0.00013939,2]
[384874184,1757605839826,-480.0,0.00013939,2]
[384874186,1757605839835,-480.0,0.00013939,2]
[384874188,1757605839844,-151.0,0.00013939,2]
[384874189,1757605839852,-280.803157,0.00013939,2]
[384874191,1757605839862,-151.0,0.00013939,2]
[384874193,1757605839871,-151.0,0.00013939,2]
[384874195,1757605839881,-151.0,0.00013939,2]
[384874197,1757605839890,-151.0,0.00013939,2]
[384874200,1757605839900,-480.0,0.00013939,2]
[384874201,1757605839910,-480.0,0.00013939,2]
[384874204,1757605839921,-480.0,0.0001394,2]
[384874205,1757605839930,-480.0,0.0001394,2]
[384874207,1757605839939,-480.0,0.0001394,2]
[384874209,1757605839948,-151.0,0.00013942,2]
[384874211,1757605839957,-151.0,0.00013942,2]
[384874213,1757605839966,-151.0,0.00013942,2]
[384874215,1757605839975,-151.0,0.00013942,2]
[384874217,1757605839984,-151.0,0.00013942,2]
[384874219,1757605839993,-151.0,0.00013942,2]
[384874231,1757605840109,-293.197733,0.00013942,2]
[384874232,1757605840120,-151.0,0.00013942,2]
[384874233,1757605840129,-151.0,0.00013942,2]
[384874234,1757605840138,-163.634668,0.00013942,2]
[384874235,1757605840147,-151.0,0.00013942,2]
[384874236,1757605840156,-151.0,0.00013942,2]
[384874237,1757605840165,-151.0,0.00013942,2]
[384874238,1757605840175,-151.0,0.00013942,2]
[384874239,1757605840184,-8486.22536541,0.00013942,2]
[384874240,1757605840197,-1095.95238467,0.00013942,2]
[384874241,1757605840356,-7603.81185822,0.00013942,2]
[384874242,1757605840367,-374.6559393,0.00013942,2]
[384874243,1757605840379,-617.86272034,0.00013942,2]
[384874244,1757605840390,-425.37543206,0.00013942,2]
[384874245,1757605840399,-162.35714062,0.00013942,2]
[384874246,1757605840408,-500.0,0.00013946,2]
[384874247,1757605840417,-500.0,0.00013946,2]
[384874248,1757605840427,-277.92668241,0.00013947,2]
[384874249,1757605840439,-202.07331759,0.00013947,2]
[384874250,1757605840449,-487.02045674,0.00013947,2]
[384874251,1757605840459,-181.51853907,0.00013947,2]
[384874252,1757605840470,-298.48146093,0.00013947,2]
[384874253,1757605840480,-480.0,0.00013947,2]
[384874254,1757605840489,-480.0,0.00013947,2]
[384874255,1757605840499,-480.0,0.00013947,2]
[384874256,1757605840509,-480.0,0.00013947,2]
[384874257,1757605840519,-480.0,0.00013947,2]
[384874258,1757605840528,-480.0,0.00013947,2]
[384874259,1757605840537,-480.0,0.00013947,2]
[384874260,1757605840546,-480.0,0.00013947,2]
[384874261,1757605840555,-480.0,0.00013947,2]
[384874262,1757605840565,-480.0,0.00013947,2]
[384874263,1757605840574,-345.42149161,0.00013947,2]
[384874264,1757605840584,-244.35128293,0.00013947,2]
[384874265,1757605840595,-235.64871707,0.00013947,2]
[384874266,1757605840604,-231.06,0.00013947,2]
[384874267,1757605840614,-480.0,0.00013947,2]
[384874268,1757605840623,-335.31639057,0.00013947,2]
[384874269,1757605840633,-480.0,0.00013947,2]
[384874270,1757605840642,-480.0,0.00013947,2]
[384874271,1757605840651,-454.23653039,0.00013947,2]
[384874272,1757605840660,-480.0,0.00013947,2]
[384874273,1757605840669,-480.0,0.00013947,2]
[384874274,1757605840679,-480.0,0.00013947,2]
[384874275,1757605840688,-480.0,0.00013947,2]
[384874276,1757605840698,-480.0,0.00013947,2]
[384874277,1757605840710,-480.0,0.00013947,2]
[384874278,1757605840719,-480.0,0.00013947,2]
[384874279,1757605840732,-480.0,0.00013947,2]
[384874280,1757605840741,-525.10456097,0.00013947,2]
[384874281,1757605840751,-480.0,0.00013947,2]
[384874282,1757605840760,-480.0,0.00013947,2]
[384874283,1757605840770,-480.0,0.00013947,2]
[384874284,1757605840779,-480.0,0.00013947,2]
[384874285,1757605840789,-480.0,0.00013947,2]
[384874286,1757605840799,-480.0,0.00013947,2]
[384874287,1757605840808,-152.519859,0.00013947,2]
[384874288,1757605840818,-480.0,0.00013947,2]
[384874289,1757605840828,-151.0,0.00013947,2]
[384874291,1757605840837,-26.113942,0.00013947,2]
[384874293,1757605840849,-124.886058,0.00013947,2]
[384874295,1757605840859,-153.990148,0.00013947,2]
[384874297,1757605840868,-151.0,0.00013947,2]
[384874298,1757605840877,-147.50863971,0.00013947,2]
[384874306,1757605843152,-332.49136029,0.00013947,2]
[384874307,1757605843162,-480.0,0.00013947,2]
[384874308,1757605843171,-151.0,0.00013947,2]
[384874309,1757605843181,-480.0,0.00013947,2]
[384874310,1757605843190,-151.0,0.00013947,2]
[384874311,1757605843199,-480.0,0.00013947,2]
[384874312,1757605843208,-480.0,0.00013947,2]
[384874313,1757605843217,-251.074136,0.00013947,2]
[384874314,1757605843227,-481.22094941,0.00013947,2]
[384874315,1757605843239,-480.0,0.00013947,2]
[384874317,1757605843249,-480.0,0.00013948,2]
[384874319,1757605843258,-3693.3490468,0.0001395,2]
[384874321,1757605843267,-16990.45302423,0.00013951,2]
[384874323,1757605843279,-66173.24147182,0.00013951,2]
[384874325,1757605843289,-151.0,0.00013951,2]
[384874327,1757605843298,-151.0,0.00013951,2]
[384874329,1757605843307,-289.944848,0.00013951,2]
[384874331,1757605843317,-185.007786,0.00013951,2]
[384874333,1757605843327,-151.0,0.00013951,2]
[384874335,1757605843336,-151.0,0.00013951,2]
[384874337,1757605843345,-151.0,0.00013951,2]
[384874339,1757605843355,-151.0,0.00013951,2]
[384874340,1757605843363,-151.0,0.00013951,2]
[384874342,1757605843373,-151.0,0.00013951,2]
[384874344,1757605843382,-191.9542,0.00013951,2]
[384874346,1757605843391,-151.0,0.00013951,2]